bitfinex-derivatives/quotes_SOLF0:USTF0_20260310
["timestamp","ask_amount","ask_price","bid_price","bid_amount"]
[1773164900219,9.69983734,87.909,87.82,8.87023154]
[1773164900919,9.69983734,87.909,87.84,8.87023154]
[1773164901220,9.66947158,87.927,87.875,10.24]
[1773164901720,9.66951922,87.917,87.867,10.241]
[1773164902317,10.235,87.916,87.867,10.241]
[1773164902617,9.66951922,87.915,87.867,10.241]
[1773164903020,9.66951922,87.915,87.875,10.24]
[1773164903220,9.66951922,87.915,87.84,8.87023154]
[1773164903620,9.66951922,87.915,87.869,10.24]
[1773164903920,9.66951922,87.915,87.84,8.87023154]
[1773164904120,10.235,87.914,87.866,10.241]
[1773164904325,9.6661976,87.913,87.866,10.241]
[1773164904728,9.66308614,87.934,87.906,10.236]
[1773164905025,9.66308614,87.956,87.86,8.87023154]
[1773164905620,9.66308614,87.956,87.912,10.235]
[1773164906019,9.66308614,87.956,87.88,8.87023154]
[1773164906324,9.66308614,87.956,87.916,10.235]
[1773164907522,9.66308614,87.956,87.86,8.87023154]
[1773164907728,169.47784627,88.012,87.86,8.87023154]
[1773164907729,9.65599151,87.939,87.86,8.87023154]
[1773164908825,9.65599151,87.939,87.84,8.87023154]
[1773164909126,9.67914824,87.907,87.82,8.87023154]
[1773164910126,9.67919309,87.929,87.82,8.87023154]
[1773164910326,10.235,87.916,87.862,10.241]
[1773164910522,9.67919309,87.915,87.862,10.241]
[1773164911627,9.80826371,87.912,87.862,10.241]
[1773164911926,9.80826371,87.912,87.822,20.492]
[1773164911927,9.80826371,87.912,87.87,10.24]
[1773164913028,9.80826371,87.912,87.862,10.241]
[1773164913719,9.7898862,87.929,87.84,8.87023154]
[1773164914425,9.7898862,87.92,87.84,8.87023154]
[1773164915328,9.7898862,87.92,87.871,10.24]
[1773164915524,9.7898862,87.92,87.841,20.488]
[1773164915730,9.76280482,87.939,87.86,8.87023154]
[1773164916030,9.76280482,87.937,87.85,8.87023154]
[1773164917024,9.67316819,87.954,87.87,8.87023154]
[1773164917230,9.67316819,87.954,87.89,8.87023154]
[1773164917932,9.67316819,87.954,87.917,10.235]
[1773164919436,2.84162952,87.966,87.925,10.234]
[1773164919734,9.67210957,87.973,87.925,10.234]
[1773164919930,2.8413735,87.972,87.925,10.234]
[1773164920132,2.8413735,87.971,87.925,10.234]
[1773164920329,9.67210957,87.973,87.91,8.87023154]
[1773164920931,9.6749742,87.982,87.928,10.234]
[1773164921130,9.6749742,87.98,87.928,10.234]
[1773164921336,2.8413735,87.979,87.928,10.234]
[1773164921524,2.8413735,87.978,87.91,8.87023154]
[1773164921726,9.67501321,87.977,87.91,8.87023154]
[1773164922225,9.67501321,87.977,87.939,10.232]
[1773164923026,11.39,88.093,87.91,8.87023154]
[1773164923027,0.00091521,88.017,87.96,8.87023154]
[1773164923335,8.87023154,88.07,87.97,8.87023154]
[1773164923829,8.87023154,88.07,87.942,14.05999434]
[1773164924036,8.87023154,88.07,87.96,8.87023154]
[1773164924425,8.87023154,88.05,87.98,10.227]
[1773164924632,8.87023154,88.07,87.98,10.227]
[1773164925332,7.67291469,88.056,87.991,10.226]
[1773164926436,7.67291469,88.056,88.001,10.225]
[1773164927637,7.67291469,88.056,88.011,10.224]
[1773164929932,7.63861411,88.079,87.96,8.84305679]
[1773164930133,7.63861411,88.079,87.98,8.84305679]
[1773164930634,7.63861411,88.079,88.0,8.84305679]
[1773164930834,7.63861411,88.079,87.971,20.458]
[1773164931033,7.63861411,88.079,88.0,8.84305679]
[1773164931228,7.63861411,88.079,88.035,10.221]
[1773164931430,7.63861411,88.079,88.0,8.84305679]
[1773164931732,7.63861411,88.079,88.025,10.222]
[1773164931939,7.63861411,88.079,88.0,8.84305679]
[1773164932737,7.63861411,88.079,88.014,10.224]
[1773164933130,7.59969631,88.075,88.014,10.224]
[1773164933834,7.60060543,88.103,88.02,8.84305679]
[1773164934029,7.60060543,88.099,88.0,8.84305679]
[1773164934434,7.60060543,88.092,88.0,8.84305679]
[1773164934833,7.57177334,88.077,88.01,10.224]
[1773164935030,7.57177334,88.077,88.0,8.84305679]
[1773164936338,7.57261242,88.099,88.02,8.84305679]
[1773164937039,7.57261242,88.099,88.043,10.22]
[1773164937438,7.45061882,88.098,88.043,10.22]
[1773164938033,10.214,88.097,88.034,10.221]
[1773164938238,8.84305679,88.12,88.034,10.221]
[1773164938239,7.45126221,88.096,88.034,10.221]
[1773164939540,10.215,88.092,88.034,10.221]
[1773164939743,7.50074004,88.148,88.07,8.84305679]
[1773164939944,7.50074004,88.144,88.07,8.84305679]
[1773164940235,7.50074004,88.144,88.073,10.217]
[1773164940640,1.97509563,88.171,88.064,10.218]
[1773164940641,7.50074004,88.124,88.064,10.218]
[1773164940845,7.46917318,88.149,88.05,8.84305679]
[1773164941235,7.46917318,88.149,88.092,10.215]
[1773164941432,7.46917318,88.149,88.05,8.84305679]
[1773164941631,7.46917318,88.149,88.07,8.84305679]
[1773164941844,7.46980821,88.146,88.091,10.215]
[1773164942040,7.46980821,88.146,88.07,8.84305679]
[1773164943243,7.494151,88.142,88.081,10.216]
[1773164943738,7.494151,88.142,88.05,8.84305679]
[1773164943939,7.49480627,88.17,88.07,8.84305679]
[1773164944131,7.49480627,88.169,88.09,8.84305679]
[1773164944435,7.49480627,88.169,88.07,8.84305679]
[1773164944633,7.49480627,88.165,88.104,10.213]
[1773164946337,7.51037377,88.16,88.104,10.213]
[1773164946945,7.51037377,88.16,88.112,10.212]
[1773164947145,7.51037377,88.16,88.07,8.84305679]
[1773164947846,7.58014526,88.151,88.093,10.214]
[1773164948146,7.58014526,88.151,88.07,8.84305679]
[1773164948740,7.58014526,88.151,88.112,10.212]
[1773164948946,7.58014526,88.151,88.09,8.84305679]
[1773164949141,7.51103797,88.189,88.09,8.84305679]
[1773164949346,7.51103797,88.169,88.09,8.84305679]
[1773164949542,7.51103797,88.169,88.11,10.212]
[1773164949847,7.51103797,88.169,88.09,8.84305679]
[1773164950548,7.51103797,88.169,88.056,20.438]
[1773164950549,7.51166449,88.151,88.06,8.84305679]
[1773164951144,10.209,88.137,88.068,10.217]
[1773164951339,10.209,88.137,88.06,8.84305679]
[1773164951340,7.48649292,88.136,88.06,8.84305679]
[1773164951745,7.48649292,88.136,88.008,20.449]
[1773164951944,7.4870712,88.125,88.065,10.218]
[1773164952349,7.4870712,88.125,88.008,20.449]
[1773164952350,10.213,88.108,88.056,10.219]
[1773164952738,7.4870712,88.125,88.009,34.17]
[1773164953248,7.4870712,88.125,87.99,159.084]
[1773164953249,7.37357428,88.158,88.05,8.84305679]
[1773164953444,7.37357428,88.139,88.032,20.443]
[1773164953746,7.37400832,88.121,88.011,34.17]
[1773164954247,7.37400832,88.121,88.024,5.0]
[1773164954637,10.212,88.113,88.063,10.218]
[1773164956247,7.31972189,88.119,88.009,20.449]
[1773164956641,7.31972189,88.119,88.01,8.84305679]
[1773164956843,7.31972189,88.119,88.011,5.0]
[1773164957449,10.215,88.093,88.038,10.221]
[1773164958852,10.216,88.084,88.03,10.222]
[1773164959152,7.19323823,88.083,88.03,10.222]
[1773164959348,10.217,88.073,88.021,10.223]
[1773164959952,10.219,88.052,88.005,10.225]
[1773164960255,7.19359725,88.057,87.98,8.84305679]
[1773164961155,17.4216882,88.054,88.004,10.225]
[1773164961451,7.2026882,88.053,88.004,10.225]
[1773164962158,7.2026882,88.053,87.931,13.84344765]
[1773164962159,7.20289958,88.039,87.95,8.84305679]
[1773164964252,10.221,88.038,87.984,10.227]
[1773164966154,7.20722813,88.028,87.975,10.228]
[1773164966460,7.20722813,88.028,87.95,8.84305679]
[1773164966461,7.20722813,88.045,87.95,8.84305679]
[1773164966659,7.16167857,88.043,87.95,8.84305679]
[1773164968554,8.84305679,88.06,87.95,8.84305679]
[1773164968555,7.1618343,88.041,87.95,8.84305679]
[1773164968956,7.15725397,88.039,87.95,8.84305679]
[1773164969657,7.15725397,88.039,87.952,13.84344765]
[1773164969857,7.15725397,88.039,87.95,8.84305679]
[1773164970959,7.15725397,88.039,87.97,8.84305679]
[1773164971559,7.15725397,88.039,87.998,10.225]
[1773164971961,7.15492677,88.059,87.97,8.84305679]
[1773164972761,7.11443188,88.05,87.996,10.226]
[1773164973359,7.11443188,88.05,87.97,8.84305679]
[1773164973360,7.11443188,88.05,87.971,20.458]
[1773164973560,7.11453444,88.066,87.97,8.84305679]
[1773164973760,7.11453444,88.066,87.99,8.84305679]
[1773164974165,7.11453444,88.062,88.014,10.224]
[1773164975359,7.1114224,88.044,87.96,8.84305679]
[1773164975656,7.11151986,88.059,87.98,8.84305679]
[1773164976262,7.11151986,88.047,87.962,34.45564935]
[1773164976457,7.11151986,88.047,87.962,20.46]
[1773164976764,7.11151986,88.047,87.98,8.84305679]
[1773164977463,7.11151986,88.047,88.0,10.225]
[1773164978155,7.11151986,88.047,87.992,10.226]
[1773164978754,7.28621685,88.045,87.999,10.225]
[1773164980160,8.84305679,88.06,87.999,10.225]
[1773164980161,7.28645378,88.043,87.999,10.225]
[1773164981164,7.29308646,88.041,87.992,10.226]
[1773164981361,7.29308646,88.041,87.965,20.459]
[1773164981761,7.29332447,88.04,87.96,8.84305679]
[1773164982157,7.29332447,88.04,87.946,192.12863091]
[1773164982158,7.29332447,88.039,87.946,192.12863091]
[1773164982362,8.84305679,88.04,87.946,192.12863091]
[1773164982363,7.29332447,88.009,87.946,192.12863091]
[1773164982962,7.29332447,88.009,87.961,10.23]
[1773164983364,7.29332447,88.009,87.946,192.12863091]
[1773164984167,7.29332447,88.009,87.968,10.229]
[1773164985268,7.28660245,88.008,87.958,10.23]
[1773164985568,3.30604467,88.0,87.95,3.30604467]
[1773164985764,10.59286954,88.0,87.95,3.30604467]
[1773164986064,7.28682487,87.997,87.95,10.231]
[1773164986269,10.59286954,87.98,87.946,192.12863091]
[1773164986470,7.28682487,87.979,87.946,192.12863091]
[1773164986672,7.28682487,87.969,87.914,8.80788141]
[1773164987373,7.28682487,87.969,87.93,3.30604467]
[1773164987571,7.28682487,87.969,87.921,8.75717584]
[1773164987772,8.8608721,88.0,87.921,8.75717584]
[1773164989174,10.228,87.98,87.921,8.75717584]
[1773164989476,8.8608721,88.0,87.921,8.75717584]
[1773164989671,8.86204657,87.99,87.921,8.75717584]
[1773164990269,10.227,87.985,87.924,19.00692604]
[1773164991686,10.228,87.978,87.924,19.00692604]
[1773164992583,10.229,87.969,87.924,8.77292604]
[1773164992784,8.86204657,87.99,87.924,8.77292604]
[1773164994980,10.229,87.969,87.913,10.235]
[1773164995185,8.86204657,87.99,87.913,10.235]
[1773164995488,8.86204657,87.97,87.904,10.236]
[1773164996184,8.86204657,87.97,87.906,19.08412819]
[1773164996384,8.86204657,87.97,87.907,8.84812819]
[1773164996887,10.23,87.961,87.907,8.84812819]
[1773164997285,8.86204657,87.97,87.907,8.84812819]
[1773164997488,10.229,87.969,87.92,8.84998988]
[1773164997684,8.86204657,87.99,87.92,8.84998988]
[1773164997889,10.228,87.977,87.921,19.08343424]
[1773164998089,8.86204657,87.99,87.921,19.08343424]
[1773164998980,8.86204657,87.99,87.913,10.235]
[1773164999180,8.86204657,87.97,87.905,8.85579203]
[1773165000184,10.232,87.946,87.905,8.85579203]
[1773165000390,10.232,87.946,87.889,8.85526475]
[1773165000784,8.86204657,87.97,87.905,8.85682997]
[1773165000990,8.86204657,87.99,87.905,8.85682997]
[1773165001793,8.86204657,87.99,87.92,8.85631831]
[1773165002092,8.86204657,87.99,87.891,8.85631831]
[1773165002293,8.86204657,87.99,87.899,8.85631831]
[1773165002495,20.454,87.988,87.899,8.85631831]
[1773165003393,192.19214643,88.044,87.911,9.00287295]
[1773165003597,8.86204657,88.02,87.921,9.00287295]
[1773165004393,10.225,88.0,87.935,9.00268]
[1773165004991,8.86204657,88.0,87.921,9.04291953]
[1773165005494,10.229,87.965,87.901,9.04291953]
[1773165005891,8.86204657,87.98,87.901,9.04291953]
[1773165006595,10.23,87.956,87.902,10.237]
[1773165007100,10.23,87.956,87.855,34.17]
[1773165007101,8.86204657,87.96,87.869,8.9707702]
[1773165008497,10.233,87.935,87.874,8.97052336]
[1773165008800,159.06,88.004,87.874,8.97052336]
[1773165008801,8.86204657,87.94,87.874,8.97052336]
[1773165009002,10.234,87.926,87.874,8.97052336]
[1773165009193,8.86204657,87.94,87.874,8.97052336]
[1773165009594,10.233,87.932,87.88,10.239]
[1773165009799,10.233,87.932,87.874,8.97052336]
[1773165010794,10.234,87.924,87.874,8.97052336]
[1773165011001,8.86204657,87.95,87.874,8.97052336]
[1773165011300,10.234,87.927,87.874,8.97052336]
[1773165011500,8.86204657,87.95,87.874,8.97052336]
[1773165013506,10.235,87.921,87.874,8.97052336]
[1773165015602,10.235,87.921,87.866,10.241]
[1773165015603,10.234,87.929,87.878,8.91202765]
[1773165015807,8.86204657,87.95,87.878,8.91202765]
[1773165016607,10.232,87.939,87.892,8.90640107]
[1773165016911,189.06759539,88.016,87.892,8.90640107]
[1773165016912,8.86204657,87.99,87.892,8.90640107]
[1773165017406,8.86204657,87.99,87.916,8.90640107]
[1773165017906,189.06759539,88.016,87.927,8.90639836]
[1773165018506,8.86204657,88.0,87.927,8.90639836]
[1773165018701,8.86204657,88.0,87.928,8.93146776]
[1773165020902,10.227,87.987,87.93,10.233]
[1773165021108,10.227,87.987,87.931,8.9462371]
[1773165021306,189.06759539,88.016,87.931,8.9462371]
[1773165021502,10.226,87.99,87.931,8.9462371]
[1773165022312,10.226,87.99,87.933,8.94623529]
[1773165022508,8.86204657,88.03,87.933,8.94623529]
[1773165023012,8.86204657,88.03,87.92,8.86204657]
[1773165023013,8.86204657,88.03,87.947,8.95533479]
[1773165023913,10.224,88.008,87.949,8.95533236]
[1773165025013,10.223,88.017,87.959,8.95050428]
[1773165025214,8.86204657,88.03,87.959,8.95050428]
[1773165025612,8.86204657,88.03,87.94,8.86204657]
[1773165025613,8.86204657,88.03,87.961,8.95050295]
[1773165026315,10.224,88.013,87.961,8.95050295]
[1773165027210,8.86204657,88.03,87.946,8.93218442]
[1773165027914,10.226,87.992,87.946,8.93218442]
[1773165029410,8.86204657,88.03,87.946,8.93218442]
[1773165029616,10.225,88.0,87.946,8.93218442]
[1773165031514,10.225,88.0,87.948,8.92056031]
[1773165032418,20.437,88.059,87.961,8.92055877]
[1773165032613,8.86204657,88.05,87.961,8.92055877]
[1773165033119,8.86204657,88.05,87.974,8.93673019]
[1773165034322,10.224,88.013,87.974,8.93673019]
[1773165035717,10.225,88.006,87.958,8.93824874]
[1773165036520,8.86204657,88.03,87.96,8.93824874]
[1773165037422,10.224,88.009,87.96,8.93824874]
[1773165037716,10.224,88.009,87.964,8.91985248]
[1773165038723,10.225,88.002,87.964,8.91985248]
[1773165038921,8.86204657,88.03,87.941,8.92186159]
[1773165039220,10.226,87.995,87.948,8.92186159]
[1773165039516,8.86204657,88.01,87.948,8.92186159]
[1773165040220,10.227,87.982,87.921,8.92185906]
[1773165040623,8.86204657,88.01,87.921,8.92185906]
[1773165040822,10.226,87.997,87.947,8.95975173]
[1773165041322,8.86204657,88.01,87.947,8.95975173]
[1773165041519,10.226,87.991,87.947,8.95975173]
[1773165042316,8.86204657,88.01,87.949,8.95975065]
[1773165042619,8.86204657,88.03,87.949,8.95975065]
[1773165043422,10.223,88.017,87.968,9.061391]
[1773165043818,8.86204657,88.03,87.968,9.061391]
[1773165044219,10.225,88.004,87.968,9.061391]
[1773165045320,10.225,88.004,87.951,9.06662515]
[1773165046325,10.226,87.996,87.951,9.06662515]
[1773165046715,8.86204657,88.01,87.951,9.06662515]
[1773165049428,10.226,87.997,87.951,9.06662515]
[1773165049922,8.86204657,88.01,87.951,9.06662515]
[1773165051325,10.226,87.991,87.951,9.06662515]
[1773165051520,5.62561949,88.026,87.967,6.1612651]
[1773165052220,10.225,88.002,87.967,6.1612651]
[1773165052822,5.71376104,87.999,87.953,10.231]
[1773165054423,10.226,87.997,87.953,10.231]
[1773165055629,10.226,87.991,87.947,6.1612651]
[1773165055841,5.74659151,87.991,87.947,6.1612651]
[1773165056132,10.227,87.984,87.947,6.1612651]
[1773165057032,10.226,87.994,87.95,6.1612651]
[1773165057234,2.84014388,87.993,87.95,6.1612651]
[1773165057434,5.72596753,88.003,87.95,6.1612651]
[1773165057634,5.73338251,88.001,87.95,6.1612651]
[1773165057836,5.73339983,87.999,87.95,6.1612651]
[1773165058026,8.57354371,87.998,87.95,6.1612651]
[1773165058233,2.84014388,87.997,87.95,6.1612651]
[1773165058432,10.227,87.989,87.95,6.1612651]
[1773165058635,2.84014388,87.988,87.95,6.1612651]
[1773165058839,5.74072747,87.995,87.95,6.1612651]
[1773165059030,2.84068647,87.994,87.95,6.1612651]
[1773165059231,5.73010697,87.992,87.936,6.1612651]
[1773165059537,5.73010697,87.989,87.918,6.1612651]
[1773165059836,10.23,87.962,87.918,6.1612651]
[1773165060036,5.73737366,87.97,87.918,6.1612651]
[1773165060235,2.8412027,87.969,87.918,6.1612651]
[1773165060438,10.229,87.966,87.92,6.1612651]
[1773165061238,10.229,87.964,87.92,6.1612651]
[1773165061437,5.74011262,87.962,87.907,13.99564935]
[1773165061638,5.74731437,87.96,87.905,6.1612651]
[1773165061840,10.231,87.952,87.905,6.1612651]
[1773165062035,2.84120066,87.951,87.905,6.1612651]
[1773165062240,2.84169321,87.95,87.905,6.1612651]
[1773165062434,10.23,87.957,87.905,6.1612651]
[1773165062642,10.41629501,88.009,87.89,8.85490118]
[1773165062643,5.75432994,87.976,87.908,6.1612651]
[1773165062837,2.84133299,87.975,87.908,6.1612651]
[1773165063036,10.229,87.97,87.926,6.1612651]
[1773165063236,2.84133299,87.969,87.926,6.1612651]
[1773165063431,10.229,87.97,87.926,6.1612651]
[1773165063432,2.84133299,87.968,87.926,6.1612651]
[1773165063632,2.84133299,87.967,87.927,10.234]
[1773165063839,2.84133299,87.967,87.903,14.14809275]
[1773165063840,5.75047661,88.009,87.928,6.1612651]
[1773165064135,6.33903535,88.029,87.943,6.1612651]
[1773165064338,158.919,88.082,87.91,8.85490118]
[1773165064339,6.33903535,88.049,87.976,6.1612651]
[1773165065141,8.85490118,88.07,87.995,6.1612651]
[1773165065142,6.33903535,88.067,87.995,6.1612651]
[1773165065641,10.219,88.058,87.996,6.1612651]
[1773165065844,6.33903535,88.067,87.996,6.1612651]
[1773165066042,6.33903535,88.084,87.996,6.1612651]
[1773165066344,10.217,88.068,88.01,6.1612651]
[1773165066541,6.33903535,88.079,88.01,6.1612651]
[1773165067445,10.219,88.058,88.01,6.1612651]
[1773165069045,10.22,88.049,87.994,6.1612651]
[1773165069944,6.33903535,88.039,87.981,16.3882651]
[1773165070146,6.33903535,88.039,87.982,6.1612651]
[1773165070645,10.221,88.037,87.982,6.1612651]
[1773165071840,6.33903535,88.029,87.972,10.228]
[1773165072042,6.33903535,88.029,87.966,6.1612651]
[1773165073343,6.33903535,88.029,87.968,6.1612651]
[1773165074448,10.222,88.026,87.975,6.1612651]
[1773165076444,10.222,88.026,87.978,6.1612651]
[1773165076646,10.221,88.037,87.978,6.1612651]
[1773165077347,6.33903535,88.035,87.979,6.1612651]
[1773165077551,6.33903535,88.033,87.979,6.1612651]
[1773165077747,9.17851792,88.032,87.979,6.1612651]
[1773165077947,6.33903535,88.032,87.979,6.1612651]
[1773165078343,10.223,88.022,87.979,6.1612651]
[1773165078544,2.83948257,88.036,87.979,6.1612651]
[1773165078749,6.33903535,88.048,87.979,6.1612651]
[1773165078950,6.33903535,88.046,87.979,6.1612651]
[1773165079151,10.222,88.031,87.981,6.1612651]
[1773165080449,10.223,88.023,87.981,6.1612651]
[1773165080647,10.223,88.023,87.95,8.85490118]
[1773165080648,6.2503979,88.023,87.967,6.47187568]
[1773165081053,10.224,88.009,87.967,6.47187568]
[1773165081259,6.2503979,88.023,87.956,10.23]
[1773165081461,6.2503979,88.019,87.951,6.47187568]
[1773165081651,3.30621318,88.0,87.951,16.70287568]
[1773165082052,10.225,87.998,87.951,6.47187568]
[1773165082549,3.30621318,88.0,87.951,6.47187568]
[1773165082958,3.30621318,87.98,87.935,6.47187568]
[1773165083556,10.227,87.985,87.936,10.233]
[1773165083953,6.2503979,87.989,87.935,6.47187568]
[1773165084155,6.2503979,87.989,87.935,16.70487568]
[1773165084360,6.2503979,87.989,87.936,6.47187568]
[1773165084963,6.2503979,87.989,87.915,6.47187568]
[1773165085259,6.2503979,87.987,87.915,6.47187568]
[1773165085454,10.227,87.985,87.933,6.47187568]
[1773165086160,10.227,87.985,87.936,10.233]
[1773165086963,10.227,87.985,87.936,16.70487568]
[1773165087959,6.2503979,87.987,87.94,6.47187568]
[1773165089065,10.226,87.994,87.942,6.47187568]
[1773165089766,10.226,87.994,87.944,6.47187568]
[1773165090162,6.2503979,88.003,87.92,23.00759934]
[1773165090163,10.225,88.002,87.949,6.47187568]
[1773165090364,6.2503979,88.029,87.949,6.47187568]
[1773165090566,6.2503979,88.027,87.949,6.47187568]
[1773165090766,6.2503979,88.025,87.949,6.47187568]
[1773165090965,6.2503979,88.023,87.949,6.47187568]
[1773165091160,10.223,88.018,87.967,6.47187568]
[1773165091465,6.2503979,88.021,87.967,6.47187568]
[1773165092065,6.2503979,88.021,87.94,23.00759934]
[1773165092066,16.4733979,88.021,87.969,6.47187568]
[1773165092261,10.223,88.021,87.969,6.47187568]
[1773165092664,2.83958535,88.039,87.98,6.47187568]
[1773165092963,6.2503979,88.05,87.98,6.47187568]
[1773165093163,6.2503979,88.05,87.96,8.85950659]
[1773165093164,10.22,88.047,87.993,6.47187568]
[1773165093361,6.2503979,88.067,87.993,6.47187568]
[1773165094068,10.219,88.055,88.004,10.225]
[1773165094567,10.219,88.055,87.996,6.47187568]
[1773165095363,10.219,88.055,88.0,6.47187568]
[1773165095559,10.218,88.064,88.0,6.47187568]
[1773165095867,6.2503979,88.063,88.0,6.47187568]
[1773165096065,6.2503979,88.063,88.012,6.47187568]
[1773165096468,6.2503979,88.063,87.981,6.47187568]
[1773165096860,10.219,88.053,87.981,6.47187568]
[1773165097068,6.2503979,88.063,88.005,6.47187568]
[1773165097560,10.217,88.069,88.013,10.224]
[1773165097764,6.2503979,88.095,88.005,6.47187568]
[1773165098968,6.2503979,88.075,88.005,6.47187568]
[1773165100366,10.217,88.072,88.018,6.47187568]
[1773165100768,6.2503979,88.075,88.018,6.47187568]
[1773165100968,6.2503979,88.091,88.018,6.47187568]
[1773165101871,10.217,88.072,88.023,10.222]
[1773165102072,6.2503979,88.074,88.018,6.47187568]
[1773165102967,16.4673979,88.074,88.02,6.47187568]
[1773165104367,16.4673979,88.074,88.022,6.47187568]
[1773165105166,10.217,88.074,88.024,6.47187568]
[1773165105472,10.216,88.082,88.024,6.47187568]
[1773165106265,10.216,88.082,88.033,6.47187568]
[1773165106473,10.215,88.09,88.033,6.47187568]
[1773165107069,16.7771674,88.09,88.033,6.47187568]
[1773165107277,6.5621674,88.09,88.033,6.47187568]
[1773165107677,3.30010214,88.08,88.033,6.47187568]
[1773165107874,6.5621674,88.067,88.01,3.30010214]
[1773165108075,6.5621674,88.059,88.0,3.30010214]
[1773165108268,10.219,88.057,88.003,10.225]
[1773165108469,10.219,88.057,88.01,3.30010214]
[1773165110474,10.219,88.057,88.003,10.225]
[1773165110870,10.219,88.051,88.003,10.225]
[1773165111071,3.30010214,88.05,88.001,6.75053111]
[1773165111280,10.22,88.046,88.001,6.75053111]
[1773165111580,3.30257407,88.05,88.001,6.75053111]
[1773165112374,10.22,88.042,88.001,6.75053111]
[1773165113174,10.22,88.049,88.002,10.225]
[1773165113572,10.219,88.058,88.002,10.225]
[1773165113774,6.5621674,88.059,88.001,6.75053111]
[1773165114373,10.218,88.059,88.011,6.92075741]
[1773165114575,3.30257407,88.06,88.011,6.92075741]
[1773165114878,20.428,88.097,88.011,6.92075741]
[1773165114879,3.30257407,88.05,88.011,6.92075741]
[1773165116180,10.219,88.052,88.011,6.92075741]
[1773165118279,6.83107865,88.059,88.012,10.224]
[1773165119079,3.30257407,88.05,88.0,3.30257407]
[1773165119381,6.83107865,88.049,87.993,6.92075741]
[1773165120382,10.221,88.037,87.993,6.92075741]
[1773165120979,3.30257407,88.04,87.994,17.14675741]
[1773165121875,3.30257407,88.04,87.995,6.92075741]
[1773165122482,10.221,88.039,87.995,6.92075741]
[1773165123383,10.221,88.039,87.998,10.225]
[1773165124285,10.221,88.036,87.995,6.92075741]
[1773165124480,6.83107865,88.035,87.991,10.226]
[1773165125284,10.221,88.034,87.991,10.226]
[1773165126081,10.221,88.034,87.992,6.92075741]
[1773165127388,6.83107865,88.019,87.962,6.92075741]
[1773165127586,20.438,88.058,87.962,6.92075741]
[1773165127587,10.13365272,88.01,87.962,6.92075741]
[1773165128389,20.35765272,88.01,87.963,6.92075741]
[1773165128784,10.13365272,88.01,87.963,6.92075741]
[1773165129490,2.83782623,88.048,87.963,6.92075741]
[1773165129695,3.30257407,88.03,87.981,6.92075741]
[1773165130295,10.222,88.029,87.982,6.92075741]
[1773165130596,3.30257407,88.02,87.965,6.92075741]
[1773165130792,3.30257407,88.01,87.967,10.229]
[1773165130985,10.13365272,88.02,87.965,6.92075741]
[1773165131788,3.30257407,88.01,87.965,6.92075741]
[1773165133397,10.225,88.004,87.965,6.92075741]
[1773165133597,3.30257407,88.0,87.965,6.92075741]
[1773165133792,3.30257407,88.01,87.965,6.92075741]
[1773165133997,10.224,88.009,87.965,17.14975741]
[1773165134194,3.30257407,88.01,87.965,6.92075741]
[1773165134395,6.83107865,88.017,87.965,6.92075741]
[1773165134594,3.30257407,88.01,87.965,6.92075741]
[1773165135195,10.224,88.009,87.966,10.229]
[1773165135900,3.30257407,88.03,87.971,6.92075741]
[1773165136100,2.83954389,88.029,87.981,6.92075741]
[1773165136296,2.83954389,88.028,87.981,6.92075741]
[1773165136497,2.83954389,88.027,87.981,6.92075741]
[1773165136800,3.30257407,88.03,87.98,3.30257407]
[1773165136801,3.30257407,88.03,87.982,6.92075741]
[1773165136996,2.83933249,88.029,87.982,6.92075741]
[1773165137198,13.06133249,88.028,87.982,6.92075741]
[1773165137396,2.83933249,88.027,87.982,6.92075741]
[1773165137595,10.222,88.028,87.982,6.92075741]
[1773165137900,2.83933233,88.027,87.982,6.92075741]
[1773165138098,6.83107865,88.033,87.982,6.92075741]
[1773165138298,2.83933064,88.032,87.982,6.92075741]
[1773165138500,2.83933064,88.031,87.982,6.92075741]
[1773165138797,6.83107865,88.019,87.969,6.92075741]
[1773165140404,6.83107865,88.019,87.975,10.228]
[1773165140905,6.83107865,88.019,87.953,21.11397689]
[1773165140906,6.74498173,87.999,87.955,6.5547157]
[1773165141207,6.74498173,87.999,87.95,6.5547157]
[1773165141599,6.74498173,87.999,87.952,10.231]
[1773165141801,6.74498173,87.999,87.95,6.5547157]